[Event "African Online-ch U20-Open 2021"]
[Site "Online"]
[Date "2021.02.01"]
[Round "1.15"]
[White "Machinya, Desire"]
[Black "Potgieter, Edward"]
[Result "0-1"]
[ECO "C78"]
[WhiteElo "1698"]
[BlackElo "1229"]
[Annotator "NA"]
[PlyCount "184"]
[EventDate "2021.02.01"]
[EventType "swiss"]
[EventCountry "NET"]
[SourceTitle "playchess.com"]
[Source "ChessBase"]
[SourceQuality "1"]
[TimeControl "1500+10"]

1. e4 {[%emt 0:00:00]} e5 {[%emt 0:00:05]} 2. Nf3 {[%emt 0:00:14]} Nc6 {[%emt 0:00:06]} 3. Bb5 {[%emt 0:00:15]} a6 {[%emt 0:00:06]} 4. Ba4 {[%emt 0:00:11]} Nf6 {[%emt 0:00:03]} 5. O-O {[%emt 0:00:06]} b5 {[%emt 0:00:06]} 6. Bb3 {[%emt 0:00:05]} Bc5 {[%emt 0:00:04]} 7. Nxe5 {[%emt 0:03:00]} Nxe5 {[%emt 0:00:52]} 8. d4 {[%emt 0:00:05]} Bxd4 {[%emt 0:01:18]} 9. Qxd4 {[%emt 0:00:06]} Nc6 {[%emt 0:00:25]} 10. Qd3 {[%emt 0:00:56]} O-O {[%emt 0:00:28]} 11. c3 {[%emt 0:00:32]} Bb7 {[%emt 0:00:57]} 12. Nd2 {[%emt 0:00:17]} Qe7 {[%emt 0:02:46]} 13. Re1 {[%emt 0:00:13]} Rad8 {[%emt 0:01:19]} 14. Bc2 {[%emt 0:00:28]} Ne5 {[%emt 0:01:36]} 15. Qe2 {[%emt 0:00:08]} d6 {[%emt 0:01:08]} 16. h3 {[%emt 0:00:25]} Rfe8 {[%emt 0:01:11]} 17. Nf1 {[%emt 0:07:18]} h6 {[%emt 0:01:19]} 18. Ng3 {[%emt 0:00:12]} Ng6 {[%emt 0:02:32]} 19. Nf5 {[%emt 0:11:09]} Qd7 {[%emt 0:00:14]} 20. Qf3 {[%emt 0:00:31]} Nh7 {[%emt 0:04:59]} 21. Bd2 {[%emt 0:01:16]} d5 {[%emt 0:00:46]} 22. exd5 {[%emt 0:00:31]} Bxd5 {[%emt 0:00:22]} 23. Qg3 {[%emt 0:00:05]} Rxe1+ {[%emt 0:00:35]} 24. Bxe1 {[%emt 0:00:13]} Re8 {[%emt 0:00:37]} 25. Ne3 {[%emt 0:00:08]} Be4 {[%emt 0:01:05]} 26. Bb3 {[%emt 0:00:12]} Kf8 {[%emt 0:01:08]} 27. f3 {[%emt 0:00:08]} Bb7 {[%emt 0:00:18]} 28. Rd1 {[%emt 0:00:06]} Qe7 {[%emt 0:00:19]} 29. Bf2 {[%emt 0:00:04]} Nf6 {[%emt 0:00:47]} 30. Nf5 {[%emt 0:00:06]} Qe5 {[%emt 0:00:29]} 31. Qxe5 {[%emt 0:00:33]} Nxe5 {[%emt 0:00:02]} 32. Bc5+ {[%emt 0:00:08]} Kg8 {[%emt 0:00:06]} 33. Kf2 {[%emt 0:00:14]} Bc8 {[%emt 0:00:28]} 34. Ne7+ {[%emt 0:00:07]} Kh7 {[%emt 0:00:18]} 35. Nxc8 {[%emt 0:00:09]} Rxc8 {[%emt 0:00:03]} 36. Be7 {[%emt 0:00:04]} c5 {[%emt 0:01:04]} 37. Bxf6 {[%emt 0:00:13]} gxf6 {[%emt 0:00:02]} 38. f4 {[%emt 0:00:03]} Ng6 {[%emt 0:00:11]} 39. Bc2 {[%emt 0:00:05]} Kg7 {[%emt 0:00:05]} 40. g3 {[%emt 0:00:04]} Re8 {[%emt 0:00:13]} 41. Kf3 {[%emt 0:00:23]} Re7 {[%emt 0:00:29]} 42. h4 {[%emt 0:00:07]} Nf8 {[%emt 0:00:08]} 43. f5 {[%emt 0:00:11]} Nd7 {[%emt 0:00:06]} 44. Rd6 {[%emt 0:00:16]} Ne5+ {[%emt 0:00:29]} 45. Kf4 {[%emt 0:00:08]} Ra7 {[%emt 0:00:09]} 46. Bb3 {[%emt 0:00:12]} a5 {[%emt 0:00:16]} 47. Rd5 {[%emt 0:00:12]} Rb7 {[%emt 0:00:24]} 48. Ke4 {[%emt 0:00:15]} c4 {[%emt 0:00:04]} 49. Bd1 {[%emt 0:00:11]} Nd3 {[%emt 0:00:07]} 50. b3 {[%emt 0:00:09]} Nf2+ {[%emt 0:00:15]} 51. Ke3 {[%emt 0:00:14]} Nxd1+ {[%emt 0:00:14]} 52. Rxd1 {[%emt 0:00:03]} cxb3 {[%emt 0:00:02]} 53. axb3 {[%emt 0:00:03]} Rc7 {[%emt 0:00:14]} 54. Rd3 {[%emt 0:00:10]} a4 {[%emt 0:00:11]} 55. bxa4 {[%emt 0:00:12]} bxa4 {[%emt 0:00:02]} 56. Kd2 {[%emt 0:00:03]} Kf8 {[%emt 0:00:11]} 57. Kc2 {[%emt 0:00:03]} Rc4 {[%emt 0:00:19]} 58. Kb2 {[%emt 0:00:20]} Ke7 {[%emt 0:00:05]} 59. Ka3 {[%emt 0:00:04]} h5 {[%emt 0:00:08]} 60. Kb2 {[%emt 0:00:07]} Ke8 {[%emt 0:00:14]} 61. Rf3 {[%emt 0:00:49]} Kd7 {[%emt 0:00:09]} 62. Rd3+ {[%emt 0:00:12]} Kc6 {[%emt 0:00:08]} 63. Rd8 {[%emt 0:00:13]} Rc5 {[%emt 0:00:15]} 64. Rf8 {[%emt 0:00:12]} Rxf5 {[%emt 0:00:05]} 65. Rxf7 {[%emt 0:00:03]} Rf2+ {[%emt 0:00:09]} 66. Ka3 {[%emt 0:00:04]} Rf3 {[%emt 0:00:06]} 67. Kxa4 {[%emt 0:00:20]} Rxc3 {[%emt 0:00:25]} 68. Rxf6+ {[%emt 0:00:03]} Kd7 {[%emt 0:00:05]} 69. Rg6 {[%emt 0:00:10]} Ke7 {[%emt 0:00:10]} 70. Kb4 {[%emt 0:00:04]} Re3 {[%emt 0:00:12]} 71. Kc4 {[%emt 0:00:06]} Kf7 {[%emt 0:00:03]} 72. Rg5 {[%emt 0:00:03]} Kf6 {[%emt 0:00:08]} 73. Kd4 {[%emt 0:00:03]} Ra3 {[%emt 0:00:09]} 74. Ke4 {[%emt 0:00:04]} Rb3 {[%emt 0:00:07]} 75. Kf4 {[%emt 0:00:05]} Rb4+ {[%emt 0:00:14]} 76. Kf3 {[%emt 0:00:02]} Rb3+ {[%emt 0:00:05]} 77. Kg2 {[%emt 0:00:04]} Rb2+ {[%emt 0:00:02]} 78. Kh3 {[%emt 0:00:02]} Rd2 {[%emt 0:00:07]} 79. Rxh5 {[%emt 0:00:04]} Kg6 {[%emt 0:00:02]} 80. Rg5+ {[%emt 0:00:02]} Kh6 {[%emt 0:00:04]} 81. Rf5 {[%emt 0:00:07]} Kg6 {[%emt 0:00:05]} 82. Kg4 {[%emt 0:00:16]} Rd3 {[%emt 0:00:05]} 83. h5+ {[%emt 0:00:40]} Kg7 {[%emt 0:00:04]} 84. Kh4 {[%emt 0:00:18]} Rb3 {[%emt 0:00:33]} 85. g4 {[%emt 0:00:08]} Rb4 {[%emt 0:00:16]} 86. Kg5 {[%emt 0:00:04]} Ra4 {[%emt 0:00:08]} 87. h6+ {[%emt 0:00:10]} Kh7 {[%emt 0:00:25]} 88. Kh5 {[%emt 0:00:38]} Ra1 {[%emt 0:00:24]} 89. Rf7+ {[%emt 0:00:07]} Kg8 {[%emt 0:00:14]} 90. Rg7+ {[%emt 0:00:06]} Kh8 {[%emt 0:00:05]} 91. g5 {[%emt 0:00:07]} Rh1+ {[%emt 0:00:07]} 92. Kg6 {[%emt 0:00:39]} Rxh6+ {[%emt 0:00:03]} 0-1

[Event "African Online-ch U20-Open 2021"]
[Site "Online"]
[Date "2021.02.01"]
[Round "1.16"]
[White "Darius Patlo Banda"]
[Black "Barrani, Adem"]
[Result "1-0"]
[WhiteElo "1369"]
[BlackElo "1396"]
[PlyCount "63"]
[EventDate "2021.02.01"]
[EventType "swiss"]
[EventCountry "NET"]
[TimeControl "1500+10"]
[WhiteClock "0:03:12"]
[BlackClock "0:01:33"]

1. d4 {[%emt 0:00:00]} Nf6 {[%emt 0:00:07]} 2. c4 {[%emt 0:00:04]} g6 {[%emt 0:00:04]} 3. Nc3 {[%emt 0:00:03]} d5 {[%emt 0:00:10]} 4. cxd5 {[%emt 0:00:09]} Nxd5 {[%emt 0:00:03]} 5. e4 {[%emt 0:00:04]} Nxc3 {[%emt 0:00:01]} 6. bxc3 {[%emt 0:00:03]} Bg7 {[%emt 0:00:04]} 7. Nf3 {[%emt 0:00:07]} c5 {[%emt 0:00:05]} 8. Bb2 {[%emt 0:00:08]} Bg4 {[%emt 0:00:18]} 9. Bb5+ {[%emt 0:00:22]} Nc6 {[%emt 0:00:15]} 10. d5 {[%emt 0:00:17]} Qa5 {[%emt 0:00:12]} 11. Qd3 {[%emt 0:01:37]} O-O-O {[%emt 0:00:26]} 12. O-O {[%emt 0:00:25]} f5 {[%emt 0:01:33]} 13. h3 {[%emt 0:00:55]} Bxf3 {[%emt 0:00:05]} 14. gxf3 {[%emt 0:00:23]} Ne5 {[%emt 0:00:51]} 15. Qe2 {[%emt 0:00:33]} Rhf8 {[%emt 0:01:07]} 16. Bd3 {[%emt 0:01:34]} e6 {[%emt 0:03:53]} 17. Bc4 {[%emt 0:07:10]} fxe4 {[%emt 0:03:03]} 18. fxe4 {[%emt 0:01:08]} Nf3+ {[%emt 0:00:49]} 19. Kg2 {[%emt 0:00:21]} Qc7 {[%emt 0:01:43]} 20. Rh1 {[%emt 0:00:33]} Qf4 {[%emt 0:01:55]} 21. Bc1 {[%emt 0:01:02]} Qe5 {[%emt 0:01:30]} 22. dxe6 {[%emt 0:01:11]} Qh5 {[%emt 0:03:44]} 23. e7 {[%emt 0:01:53]} Nh4+ {[%emt 0:00:04]} 24. Kg1 {[%emt 0:00:10]} Rd1+ {[%emt 0:01:16]} 25. Kh2 {[%emt 0:02:22]} Rxf2+ {[%emt 0:02:41]} 26. Qxf2 {[%emt 0:02:00]} Be5+ {[%emt 0:00:31]} 27. Bf4 {[%emt 0:01:06]} Nf3+ {[%emt 0:00:53]} 28. Kg2 {[%emt 0:00:20]} Nh4+ {[%emt 0:00:20]} 29. Qxh4 {[%emt 0:00:54]} Qxh4 {[%emt 0:00:26]} 30. e8=Q+ {[%emt 0:00:05]} Kc7 {[%emt 0:00:25]} 31. Bxe5+ {[%emt 0:00:04]} Kb6 {[%emt 0:00:03]} 32. Qb5# {[%emt 0:00:05]} 1-0

[Event "African Online-ch U20-Open 2021"]
[Site "Online"]
[Date "2021.02.01"]
[Round "1.17"]
[White "Van Der Merwe, Alexander"]
[Black "Meise, Keagen"]
[Result "1-0"]
[ECO "B34"]
[WhiteElo "1655"]
[BlackElo "1200"]
[Annotator "NA"]
[PlyCount "55"]
[EventDate "2021.02.01"]
[EventType "swiss"]
[EventCountry "NET"]
[SourceTitle "playchess.com"]
[Source "ChessBase"]
[SourceQuality "1"]
[TimeControl "1500+10"]

1. e4 {[%emt 0:00:00]} c5 {[%emt 0:00:05]} 2. Nf3 {[%emt 0:00:08]} Nc6 {[%emt 0:00:03]} 3. d4 {[%emt 0:00:03]} cxd4 {[%emt 0:00:04]} 4. Nxd4 {[%emt 0:00:02]} g6 {[%emt 0:00:03]} 5. Nc3 {[%emt 0:00:23]} Bg7 {[%emt 0:00:36]} 6. Be3 {[%emt 0:00:09]} Nf6 {[%emt 0:00:24]} 7. f3 {[%emt 0:00:15]} Qb6 {[%emt 0:01:04]} 8. Nf5 {[%emt 0:08:08]} Qxb2 {[%emt 0:03:04]} 9. Nxg7+ {[%emt 0:01:19]} Kf8 {[%emt 0:00:05]} 10. Na4 {[%emt 0:02:42]} Qa3 {[%emt 0:02:03]} 11. c3 {[%emt 0:00:36]} Kxg7 {[%emt 0:00:09]} 12. Bc5 {[%emt 0:00:46]} Qxc5 {[%emt 0:03:25]} 13. Nxc5 {[%emt 0:00:06]} b6 {[%emt 0:00:04]} 14. Nb3 {[%emt 0:00:04]} Rd8 {[%emt 0:00:14]} 15. Bb5 {[%emt 0:00:15]} Bb7 {[%emt 0:00:04]} 16. O-O {[%emt 0:00:06]} Rac8 {[%emt 0:00:08]} 17. Qe2 {[%emt 0:00:15]} Ne5 {[%emt 0:00:15]} 18. f4 {[%emt 0:00:16]} Nc6 {[%emt 0:01:00]} 19. Rad1 {[%emt 0:00:08]} Nb8 {[%emt 0:00:13]} 20. e5 {[%emt 0:00:11]} Ne4 {[%emt 0:00:03]} 21. Rc1 {[%emt 0:01:07]} Nxc3 {[%emt 0:00:07]} 22. Qe3 {[%emt 0:00:29]} Nxb5 {[%emt 0:00:13]} 23. Rxc8 {[%emt 0:00:20]} Rxc8 {[%emt 0:00:03]} 24. f5 {[%emt 0:00:23]} Nc3 {[%emt 0:00:13]} 25. f6+ {[%emt 0:00:09]} exf6 {[%emt 0:00:03]} 26. exf6+ {[%emt 0:00:05]} Kg8 {[%emt 0:00:03]} 27. Qh6 {[%emt 0:00:17]} Ne2+ {[%emt 0:00:15]} 28. Kf2 {[%emt 0:00:16]} 1-0

[Event "African Online-ch U20-Open 2021"]
[Site "Online"]
[Date "2021.02.01"]
[Round "1.19"]
[White "Fourie, Brandon"]
[Black "Spink, Benjamin M"]
[Result "1-0"]
[WhiteElo "1583"]
[BlackElo "2110"]
[PlyCount "91"]
[EventDate "2021.02.01"]
[EventType "swiss"]
[EventCountry "NET"]
[TimeControl "1500+10"]
[WhiteClock "0:05:15"]
[BlackClock "0:04:04"]

1. e4 {[%emt 0:00:00]} c5 {[%emt 0:00:04]} 2. Nf3 {[%emt 0:00:08]} Nc6 {[%emt 0:00:03]} 3. d4 {[%emt 0:00:14]} cxd4 {[%emt 0:00:03]} 4. Nxd4 {[%emt 0:00:02]} Nf6 {[%emt 0:00:02]} 5. Nc3 {[%emt 0:00:05]} e5 {[%emt 0:00:03]} 6. Ndb5 {[%emt 0:00:14]} d6 {[%emt 0:00:03]} 7. Bg5 {[%emt 0:00:17]} a6 {[%emt 0:00:05]} 8. Na3 {[%emt 0:00:02]} b5 {[%emt 0:00:03]} 9. Nd5 {[%emt 0:00:02]} Be7 {[%emt 0:00:03]} 10. Bxf6 {[%emt 0:00:01]} Bxf6 {[%emt 0:00:03]} 11. c3 {[%emt 0:00:02]} Bg5 {[%emt 0:00:03]} 12. Nc2 {[%emt 0:00:26]} Rb8 {[%emt 0:00:04]} 13. g3 {[%emt 0:00:51]} O-O {[%emt 0:00:46]} 14. h4 {[%emt 0:00:05]} Bh6 {[%emt 0:00:03]} 15. Nce3 {[%emt 0:04:45]} Bxe3 {[%emt 0:00:47]} 16. Nxe3 {[%emt 0:00:02]} b4 {[%emt 0:00:18]} 17. Qa4 {[%emt 0:01:45]} Qb6 {[%emt 0:08:15]} 18. Nd5 {[%emt 0:00:09]} Qb7 {[%emt 0:00:14]} 19. Qxc6 {[%emt 0:00:04]} bxc3 {[%emt 0:00:47]} 20. Qxb7 {[%emt 0:00:28]} cxb2 {[%emt 0:00:32]} 21. Rb1 {[%emt 0:03:44]} Bxb7 {[%emt 0:00:46]} 22. Rxb2 {[%emt 0:02:03]} Bxd5 {[%emt 0:00:10]} 23. Rxb8 {[%emt 0:00:03]} Rxb8 {[%emt 0:00:03]} 24. exd5 {[%emt 0:00:01]} Rb1+ {[%emt 0:00:11]} 25. Kd2 {[%emt 0:00:23]} Rb2+ {[%emt 0:00:02]} 26. Ke3 {[%emt 0:00:04]} Rxa2 {[%emt 0:00:03]} 27. Bc4 {[%emt 0:00:29]} Ra3+ {[%emt 0:00:03]} 28. Ke2 {[%emt 0:00:15]} Ra4 {[%emt 0:00:24]} 29. Rb1 {[%emt 0:00:07]} f5 {[%emt 0:00:21]} 30. Kd3 {[%emt 0:00:33]} Ra3+ {[%emt 0:01:55]} 31. Bb3 {[%emt 0:00:39]} a5 {[%emt 0:01:04]} 32. Kc4 {[%emt 0:01:46]} a4 {[%emt 0:00:04]} 33. Bd1 {[%emt 0:02:38]} Ra2 {[%emt 0:00:24]} 34. f3 {[%emt 0:00:51]} Rg2 {[%emt 0:02:02]} 35. g4 {[%emt 0:00:54]} fxg4 {[%emt 0:01:42]} 36. fxg4 {[%emt 0:00:02]} h5 {[%emt 0:00:04]} 37. gxh5 {[%emt 0:00:59]} Rh2 {[%emt 0:00:10]} 38. Ra1 {[%emt 0:00:30]} Rxh4+ {[%emt 0:00:15]} 39. Kb5 {[%emt 0:00:11]} Rd4 {[%emt 0:01:54]} 40. Kc6 {[%emt 0:00:05]} Kf8 {[%emt 0:00:28]} 41. Kxd6 {[%emt 0:00:06]} e4 {[%emt 0:00:23]} 42. Bxa4 {[%emt 0:00:13]} Rd2 {[%emt 0:00:10]} 43. Re1 {[%emt 0:00:37]} Rd4 {[%emt 0:00:46]} 44. Bd7 {[%emt 0:00:19]} Rc4 {[%emt 0:02:12]} 45. Be6 {[%emt 0:00:07]} Ke8 {[%emt 0:00:29]} 46. Ra1 {[%emt 0:00:04] #r} 1-0

[Event "African Online-ch U20-Open 2021"]
[Site "Online"]
[Date "2021.02.01"]
[Round "1.20"]
[White "Tong, William M"]
[Black "Mohamed Aly, Karim"]
[Result "0-1"]
[WhiteElo "1985"]
[BlackElo "1585"]
[PlyCount "106"]
[EventDate "2021.02.01"]
[EventType "swiss"]
[EventCountry "NET"]
[TimeControl "1500+10"]
[WhiteClock "0:00:30"]
[BlackClock "0:18:22"]

1. e4 {[%emt 0:00:00]} c5 {[%emt 0:00:04]} 2. Nf3 {[%emt 0:00:59]} e6 {[%emt 0:00:02]} 3. d4 {[%emt 0:00:08]} cxd4 {[%emt 0:00:03]} 4. Nxd4 {[%emt 0:00:02]} a6 {[%emt 0:00:02]} 5. Nc3 {[%emt 0:00:24]} Qc7 {[%emt 0:00:02]} 6. Bd3 {[%emt 0:01:37]} Nf6 {[%emt 0:00:07]} 7. O-O {[%emt 0:01:06]} Bc5 {[%emt 0:00:05]} 8. Nb3 {[%emt 0:00:11]} Ba7 {[%emt 0:00:02]} 9. Qf3 {[%emt 0:01:31]} Nc6 {[%emt 0:00:14]} 10. Bf4 {[%emt 0:01:41]} d6 {[%emt 0:00:07]} 11. Be3 {[%emt 0:02:44]} Ne5 {[%emt 0:01:18]} 12. Qe2 {[%emt 0:01:03]} Bxe3 {[%emt 0:00:19]} 13. Qxe3 {[%emt 0:00:51]} O-O {[%emt 0:00:18]} 14. h3 {[%emt 0:00:25]} b5 {[%emt 0:00:52]} 15. a3 {[%emt 0:00:32]} Bb7 {[%emt 0:00:17]} 16. f4 {[%emt 0:00:26]} Ng6 {[%emt 0:00:50]} 17. Kh1 {[%emt 0:02:17]} Rac8 {[%emt 0:00:35]} 18. Rae1 {[%emt 0:01:15]} Rfd8 {[%emt 0:01:07]} 19. Qf2 {[%emt 0:02:16]} Re8 {[%emt 0:01:37]} 20. Qe3 {[%emt 0:01:54]} Red8 {[%emt 0:00:32]} 21. e5 {[%emt 0:00:02]} Nd5 {[%emt 0:01:02]} 22. Nxd5 {[%emt 0:00:10]} Bxd5 {[%emt 0:00:03]} 23. Qg3 {[%emt 0:01:45]} Qe7 {[%emt 0:00:35]} 24. f5 {[%emt 0:01:39]} Qh4 {[%emt 0:00:42]} 25. Qxh4 {[%emt 0:01:52]} Nxh4 {[%emt 0:00:03]} 26. Be4 {[%emt 0:00:02]} Bxe4 {[%emt 0:00:19]} 27. Rxe4 {[%emt 0:00:06]} Nxf5 {[%emt 0:00:03]} 28. c3 {[%emt 0:00:30]} Ng3+ {[%emt 0:00:03]} 29. Kg1 {[%emt 0:00:38]} Nxe4 {[%emt 0:00:05]} 30. exd6 {[%emt 0:00:13]} Rxd6 {[%emt 0:00:05]} 31. Re1 {[%emt 0:00:20]} Nd2 {[%emt 0:00:08]} 32. Nd4 {[%emt 0:00:06]} Nc4 {[%emt 0:00:08]} 33. Re2 {[%emt 0:00:18]} Nxb2 {[%emt 0:00:33]} 34. Rxb2 {[%emt 0:00:08]} Rxc3 {[%emt 0:00:02]} 35. Nb3 {[%emt 0:00:19]} Rdd3 {[%emt 0:00:16]} 36. Na5 {[%emt 0:00:22]} Rxa3 {[%emt 0:00:06]} 37. Rc2 {[%emt 0:00:01]} Rdc3 {[%emt 0:00:12]} 38. Rd2 {[%emt 0:00:16]} g6 {[%emt 0:00:16]} 39. Nb7 {[%emt 0:00:12]} b4 {[%emt 0:00:07]} 40. Kh2 {[%emt 0:00:22]} b3 {[%emt 0:00:06]} 41. Kg1 {[%emt 0:00:04]} Rc1+ {[%emt 0:00:11]} 42. Kh2 {[%emt 0:00:02]} Ra2 {[%emt 0:00:04]} 43. Rd3 {[%emt 0:00:04]} b2 {[%emt 0:00:04]} 44. Rd8+ {[%emt 0:00:18]} Kg7 {[%emt 0:00:02]} 45. Nd6 {[%emt 0:00:05]} b1=Q {[%emt 0:00:15]} 46. Ne8+ {[%emt 0:00:05]} Kf8 {[%emt 0:00:28]} 47. Nf6+ {[%emt 0:01:05]} Ke7 {[%emt 0:00:03]} 48. Rd7+ {[%emt 0:00:04]} Kxf6 {[%emt 0:00:03]} 49. Rd4 {[%emt 0:00:18]} Rh1+ {[%emt 0:00:05]} 50. Kg3 {[%emt 0:00:04]} Qe1+ {[%emt 0:00:03]} 51. Kg4 {[%emt 0:00:02]} h5+ {[%emt 0:00:22]} 52. Kf4 {[%emt 0:00:14]} g5+ {[%emt 0:00:09]} 53. Kf3 {[%emt 0:00:12]} Rf1# {[%emt 0:00:12]} 0-1

[Event "African Online-ch U20-Open 2021"]
[Site "Online"]
[Date "2021.02.01"]
[Round "1.22"]
[White "Lion, Pierre"]
[Black "Pungo, Honorato"]
[Result "1-0"]
[WhiteElo "1586"]
[BlackElo "1550"]
[PlyCount "57"]
[EventDate "2021.02.01"]
[EventType "swiss"]
[EventCountry "NET"]
[TimeControl "1500+10"]
[WhiteClock "0:14:03"]
[BlackClock "0:01:18"]

1. e4 {[%emt 0:00:00]} c5 {[%emt 0:00:06]} 2. Nf3 {[%emt 0:00:20]} Nc6 {[%emt 0:00:06]} 3. d4 {[%emt 0:00:15]} cxd4 {[%emt 0:00:03]} 4. Nxd4 {[%emt 0:00:04]} g6 {[%emt 0:00:05]} 5. Nc3 {[%emt 0:00:19]} Bg7 {[%emt 0:00:05]} 6. Be3 {[%emt 0:00:06]} d6 {[%emt 0:00:07]} 7. Qd2 {[%emt 0:00:15]} h5 {[%emt 0:00:32]} 8. Bc4 {[%emt 0:00:57]} Nf6 {[%emt 0:00:13]} 9. f3 {[%emt 0:00:17]} Bd7 {[%emt 0:00:06]} 10. Bb3 {[%emt 0:00:48]} a6 {[%emt 0:02:48]} 11. O-O-O {[%emt 0:00:21]} b5 {[%emt 0:00:20]} 12. Kb1 {[%emt 0:00:07]} Rc8 {[%emt 0:00:21]} 13. h4 {[%emt 0:00:56]} Ne5 {[%emt 0:00:34]} 14. Bg5 {[%emt 0:02:17]} Nc4 {[%emt 0:01:36]} 15. Qe2 {[%emt 0:00:05]} e5 {[%emt 0:00:51]} 16. Nd5 {[%emt 0:02:52]} O-O {[%emt 0:03:55]} 17. g4 {[%emt 0:00:03]} exd4 {[%emt 0:03:45]} 18. gxh5 {[%emt 0:00:03]} Be6 {[%emt 0:03:20]} 19. Nxf6+ {[%emt 0:00:20]} Bxf6 {[%emt 0:00:06]} 20. hxg6 {[%emt 0:00:19]} fxg6 {[%emt 0:00:09]} 21. Rdg1 {[%emt 0:01:58]} Kg7 {[%emt 0:00:27]} 22. f4 {[%emt 0:00:54]} Bxg5 {[%emt 0:00:35]} 23. hxg5 {[%emt 0:00:47]} Rh8 {[%emt 0:01:08]} 24. Qf2 {[%emt 0:00:21]} Rxh1 {[%emt 0:04:15]} 25. Qxd4+ {[%emt 0:00:32]} Kf7 {[%emt 0:00:04]} 26. Rxh1 {[%emt 0:00:02]} Nd2+ {[%emt 0:00:49]} 27. Qxd2 {[%emt 0:00:21]} Bxb3 {[%emt 0:00:24]} 28. axb3 {[%emt 0:00:04]} Ke6 {[%emt 0:01:32]} 29. Qd5+ {[%emt 0:00:04] #r} 1-0

[Event "African Online-ch U20-Open 2021"]
[Site "Online"]
[Date "2021.02.01"]
[Round "2.6"]
[White "Junior, Domingos"]
[Black "Dutt Dakshesh"]
[Result "1-0"]
[ECO "C56"]
[WhiteElo "1894"]
[BlackElo "1549"]
[Annotator "NA RC"]
[PlyCount "77"]
[EventDate "2021.02.01"]
[EventType "swiss"]
[EventCountry "NET"]
[SourceTitle "playchess.com"]
[Source "ChessBase"]
[SourceQuality "1"]
[TimeControl "1500+10"]

1. e4 {[%emt 0:00:00]} e5 {[%emt 0:00:08]} 2. Nf3 {[%emt 0:00:04]} Nc6 {[%emt 0:00:04]} 3. Bc4 {[%emt 0:00:03]} Bc5 {[%emt 0:00:06]} 4. O-O {[%emt 0:00:07]} Nf6 {[%emt 0:00:30]} 5. d4 {[%emt 0:00:04]} exd4 {[%emt 0:00:07]} 6. e5 {[%emt 0:00:04]} d5 {[%emt 0:00:16]} 7. exf6 {[%emt 0:00:03]} dxc4 {[%emt 0:00:02]} 8. Re1+ {[%emt 0:00:07]} Be6 {[%emt 0:00:03]} 9. fxg7 {[%emt 0:00:59]} Rg8 {[%emt 0:00:21]} 10. Bg5 {[%emt 0:00:03]} Qd6 {[%emt 0:02:56]} 11. Nbd2 {[%emt 0:00:07]} Kd7 {[%emt 0:01:36]} 12. Ne4 {[%emt 0:00:09]} Rxg7 {[%emt 0:01:44]} 13. Nxd6 {[%emt 0:00:08]} cxd6 {[%emt 0:00:08]} 14. Bf6 {[%emt 0:00:12]} Rg6 {[%emt 0:00:05]} 15. Bxd4 {[%emt 0:00:05]} Rag8 {[%emt 0:00:10]} 16. Bxc5 {[%emt 0:00:21]} Rxg2+ {[%emt 0:00:10]} 17. Kh1 {[%emt 0:00:04]} d5 {[%emt 0:00:10]} 18. Rg1 {[%emt 0:00:07]} Rxg1+ {[%emt 0:00:05]} 19. Qxg1 {[%emt 0:00:06]} Rxg1+ {[%emt 0:00:05]} 20. Rxg1 {[%emt 0:00:05]} b6 {[%emt 0:00:02]} 21. Bd4 {[%emt 0:00:03]} h5 {[%emt 0:00:15]} 22. Ne5+ {[%emt 0:00:06]} Nxe5 {[%emt 0:00:07]} 23. Bxe5 {[%emt 0:00:04]} Bg4 {[%emt 0:00:03]} 24. Rxg4 {[%emt 0:00:09]} hxg4 {[%emt 0:00:04]} 25. Kg2 {[%emt 0:00:03]} f5 {[%emt 0:00:04]} 26. f3 {[%emt 0:00:05]} gxf3+ {[%emt 0:00:05]} 27. Kxf3 {[%emt 0:00:03]} Ke6 {[%emt 0:00:06]} 28. Kf4 {[%emt 0:00:03]} b5 {[%emt 0:00:04]} 29. h4 {[%emt 0:00:08]} a5 {[%emt 0:00:03]} 30. h5 {[%emt 0:00:02]} Kf7 {[%emt 0:00:05]} 31. Kxf5 {[%emt 0:00:04]} b4 {[%emt 0:00:02]} 32. h6 {[%emt 0:00:02]} Kg8 {[%emt 0:00:10]} 33. Kg6 {[%emt 0:00:03]} c3 {[%emt 0:00:03]} 34. h7+ {[%emt 0:00:04]} Kf8 {[%emt 0:00:03]} 35. h8=Q+ {[%emt 0:00:04]} Ke7 {[%emt 0:00:02]} 36. Qf6+ {[%emt 0:00:02]} Kd7 {[%emt 0:00:02]} 37. Qd6+ {[%emt 0:00:02]} Ke8 {[%emt 0:00:04]} 38. Kf6 {[%emt 0:00:02]} b3 {[%emt 0:00:10]} 39. Qe7# {[%emt 0:00:03]} 1-0